bitfinex/quotes_SOLUSD_20251231
["timestamp","ask_amount","ask_price","bid_price","bid_amount"]
[1767201177447,0.70785871,124.8,124.77,0.66284282]
[1767201177662,3.92044768,124.78,124.75,6.76512431]
[1767201177855,3.92044768,124.77,124.74,0.71007239]
[1767201178448,0.70785871,124.77,124.74,0.71007239]
[1767201179966,0.70785871,124.77,124.74,3.92266136]
[1767201181734,0.70785871,124.77,124.74,0.71007239]
[1767201182151,3.92044768,124.77,124.74,0.71007239]
[1767201183161,0.70785871,124.77,124.74,3.92266136]
[1767201183366,0.70785871,124.77,124.75,0.71007239]
[1767201183560,0.70785871,124.77,124.74,3.92266136]
[1767201184765,0.70785871,124.79,124.77,0.71007239]
[1767201185861,0.70785871,124.8,124.77,0.71007239]
[1767201186447,3.92044768,124.8,124.77,0.71007239]
[1767201187359,0.70785871,124.8,124.77,0.71007239]
[1767201191679,5.94797054,124.79,124.77,0.71007239]
[1767201191868,3.92044768,124.8,124.77,0.71007239]
[1767201192176,5.94797138,124.79,124.77,0.71007239]
[1767201192372,3.92044768,124.8,124.77,0.71007239]
[1767201192569,5.94792895,124.79,124.77,0.71007239]
[1767201192764,3.92044768,124.8,124.77,0.71007239]
[1767201192969,5.94736443,124.79,124.77,0.71007239]
[1767201193171,3.92044768,124.8,124.77,0.71007239]
[1767201196570,0.70785871,124.8,124.77,0.71007239]
[1767201198875,0.66276882,124.77,124.75,6.76512431]
[1767201199079,3.87535779,124.77,124.73,0.67323754]
[1767201199382,0.66276882,124.76,124.73,0.67323754]
[1767201200170,3.87535779,124.76,124.73,0.67323754]
[1767201201281,3.88860016,124.76,124.73,0.67323754]
[1767201201986,0.67601119,124.76,124.73,0.67323754]
[1767201202184,3.88860016,124.76,124.73,0.67323754]
[1767201202378,0.67601119,124.76,124.73,0.67323754]
[1767201203982,0.67601119,124.79,124.74,0.72266985]
[1767201204282,9.82951309,124.78,124.74,0.72266985]
[1767201204585,0.67601119,124.77,124.74,0.72266985]
[1767201205862,3.88860016,124.77,124.74,0.72266985]
[1767201206982,0.67601119,124.77,124.74,0.72266985]
[1767201207188,3.88860016,124.77,124.74,0.72266985]
[1767201207968,3.21258897,124.78,124.74,0.72266985]
[1767201208289,3.88860016,124.78,124.74,0.72266985]
[1767201208489,5.69848538,124.78,124.74,0.72266985]
[1767201208785,0.67601119,124.77,124.74,0.72266985]
[1767201212375,0.67601119,124.76,124.73,0.72266985]
[1767201213573,0.67601119,124.76,124.74,0.72266985]
[1767201214384,0.67601119,124.77,124.74,0.72266985]
[1767201216488,5.69848538,124.79,124.76,0.72266985]
[1767201216993,0.67601119,124.79,124.76,0.72266985]
[1767201225784,5.69848538,124.77,124.73,0.72266985]
[1767201225975,0.67601119,124.76,124.73,0.72266985]
[1767201230515,5.69848538,124.76,124.73,0.72266985]
[1767201230887,0.67601119,124.76,124.73,0.72266985]
[1767201240524,5.69848538,124.76,124.73,0.72266985]
[1767201244926,0.67601119,124.76,124.73,0.72266985]
[1767201245121,5.69848538,124.76,124.73,0.72266985]
[1767201245725,0.67601119,124.76,124.73,0.72266985]
[1767201245930,5.69848538,124.76,124.73,0.72266985]
[1767201248226,0.67601119,124.76,124.73,0.72266985]
[1767201249132,4.88061062,124.78,124.75,0.68304355]
[1767201249440,6.64480182,124.77,124.75,0.68304355]
[1767201249606,0.69571391,124.77,124.75,0.68304355]
[1767201249809,0.69571391,124.78,124.75,0.68304355]
[1767201250028,70.37031148,124.79,124.76,0.68304355]
[1767201250328,6.64107693,124.78,124.75,5.70551774]
[1767201250626,0.69571391,124.78,124.75,0.68304355]
[1767201250831,0.69571391,124.78,124.75,5.70551774]
[1767201251813,0.69571391,124.78,124.75,0.68304355]
[1767201252816,5.7181881,124.78,124.75,0.68304355]
[1767201253018,5.7181881,124.77,124.73,11.77926766]
[1767201253312,5.7181881,124.77,124.74,0.68304355]
[1767201253313,5.02247419,124.77,124.74,0.68304355]
[1767201253521,0.69571391,124.76,124.74,0.68304355]
[1767201254435,5.7181881,124.77,124.74,0.68304355]
[1767201257445,5.02247419,124.77,124.74,0.68304355]
[1767201257623,0.69571391,124.76,124.73,0.68304355]
[1767201258342,5.02247419,124.76,124.73,0.68304355]
[1767201258521,0.69571391,124.74,124.72,14.66]
[1767201258839,0.69571391,124.74,124.72,15.34304355]
[1767201259733,5.02247419,124.75,124.72,15.34304355]
[1767201259912,5.69291717,124.75,124.72,15.34304355]
[1767201261937,0.67044298,124.75,124.72,15.34304355]
[1767201262134,0.67044298,124.77,124.74,5.71044875]
[1767201262334,0.67044298,124.77,124.74,0.68797456]
[1767201262533,0.67044298,124.77,124.74,5.71044875]
[1767201263643,0.67044298,124.77,124.74,0.68797456]
[1767201263842,6.61366964,124.76,124.74,0.68797456]
[1767201264026,0.67044298,124.76,124.74,0.68797456]
[1767201264429,0.67044298,124.77,124.74,0.68797456]
[1767201264638,5.94404065,124.76,124.74,0.68797456]
[1767201264954,0.67044298,124.77,124.74,0.68797456]
[1767201270558,3.88490803,124.77,124.74,0.68797456]
[1767201270938,5.94894863,124.76,124.74,0.68797456]
[1767201271138,3.88490803,124.77,124.74,0.68797456]
[1767201271654,5.94890831,124.76,124.74,0.68797456]
[1767201271852,3.88490803,124.77,124.74,0.68797456]
[1767201272056,5.94890364,124.76,124.74,0.68797456]
[1767201272264,3.88490803,124.77,124.74,0.68797456]
[1767201272450,5.94894313,124.76,124.74,0.68797456]
[1767201272642,3.88490803,124.77,124.74,0.68797456]
[1767201272955,5.94894229,124.76,124.74,0.68797456]
[1767201273159,3.88490803,124.77,124.74,0.68797456]
[1767201273352,5.94898205,124.76,124.74,0.68797456]
[1767201273552,3.88490803,124.77,124.74,0.68797456]
[1767201273764,5.94898205,124.76,124.74,0.68797456]
[1767201273950,3.88490803,124.77,124.74,0.68797456]
[1767201274151,5.94888292,124.76,124.74,0.68797456]
[1767201274351,3.21446505,124.77,124.74,0.68797456]
[1767201274551,3.88490803,124.77,124.74,0.68797456]
[1767201275771,3.88490803,124.78,124.74,0.68797456]
[1767201275971,5.94925173,124.77,124.74,0.68797456]
[1767201276172,0.67044298,124.77,124.74,0.68797456]
[1767201277547,0.67044298,124.77,124.73,3.90243961]
[1767201277857,0.67044298,124.76,124.73,3.90243961]
[1767201278364,0.67044298,124.76,124.74,3.90243961]
[1767201278858,3.21446505,124.78,124.74,3.90243961]
[1767201279047,6.62056289,124.77,124.74,3.90243961]
[1767201279249,0.67044298,124.77,124.74,3.90243961]
[1767201281178,0.67044298,124.77,124.75,3.21446505]
[1767201281375,0.67044298,124.78,124.75,3.90243961]
[1767201281546,70.34504055,124.79,124.77,0.68797456]
[1767201281750,4.8551974,124.8,124.77,3.90243961]
[1767201281947,0.67044298,124.8,124.77,3.90243961]
[1767201283057,0.67044298,124.8,124.78,3.21446505]
[1767201283258,0.67044298,124.8,124.77,3.90243961]
[1767201284268,0.67044298,124.8,124.78,3.21446505]
[1767201285167,0.67044298,124.8,124.77,0.68797456]
[1767201285478,0.67044298,124.8,124.77,3.90243961]
[1767201285686,0.67044298,124.8,124.77,0.68797456]
[1767201285978,0.67044298,124.8,124.77,3.90243961]
[1767201296469,3.89921636,124.81,124.78,0.68136429]
[1767201296674,0.68475131,124.81,124.78,3.89582934]
[1767201298183,0.68475131,124.81,124.78,0.68136429]
[1767201298376,0.68475131,124.8,124.77,3.89582934]
[1767201298777,0.68475131,124.79,124.74,0.68136429]
[1767201299082,3.89921636,124.79,124.75,3.21446505]
[1767201299290,0.68475131,124.78,124.75,3.89582934]
[1767201299676,0.68475131,124.78,124.76,3.89582934]
[1767201299875,3.21446505,124.8,124.76,3.21446505]
[1767201300092,5.93521383,124.79,124.77,0.68136429]
[1767201300310,3.21446505,124.8,124.77,0.68136429]
[1767201300486,6.61974472,124.79,124.77,0.68136429]
[1767201300789,0.68475131,124.8,124.78,0.68136429]
[1767201300994,0.68475131,124.81,124.78,3.89582934]
[1767201301294,3.89921636,124.81,124.78,3.89582934]
[1767201302292,0.68475131,124.8,124.77,3.21446505]
[1767201302493,0.68475131,124.8,124.77,3.89582934]
[1767201304491,0.68475131,124.79,124.77,0.68136429]
[1767201305314,0.68475131,124.79,124.74,0.68136429]
[1767201305473,0.68475131,124.79,124.76,3.21446505]
[1767201305674,0.68475131,124.79,124.76,3.89582934]
[1767201306101,0.68475131,124.79,124.76,3.21446505]
[1767201306295,0.68475131,124.79,124.77,0.68136429]
[1767201306473,0.68475131,124.79,124.77,3.89582934]
[1767201307088,0.68475131,124.79,124.77,0.68136429]
[1767201307395,0.68475131,124.79,124.77,3.89582934]
[1767201307895,0.68475131,124.79,124.77,0.68136429]
[1767201308198,0.68475131,124.79,124.74,0.68136429]
[1767201308500,0.68475131,124.79,124.76,0.68136429]
[1767201308699,0.68475131,124.79,124.76,3.89582934]
[1767201309200,0.68475131,124.76,124.73,14.66]
[1767201309374,0.68475131,124.76,124.73,18.55582934]
[1767201309800,0.68475131,124.76,124.73,3.89582934]
[1767201310193,0.68475131,124.76,124.74,3.21446505]
[1767201310500,0.68475131,124.76,124.73,3.89582934]
[1767201311401,0.68475131,124.76,124.73,0.68136429]
[1767201311611,0.68475131,124.75,124.72,3.21446505]
[1767201311813,8.01418871,124.78,124.73,3.21446505]
[1767201312114,0.68475131,124.76,124.73,3.89582934]
[1767201312813,0.68475131,124.76,124.73,0.68136429]
[1767201313233,3.89921636,124.76,124.73,3.89582934]
[1767201313802,3.89921636,124.76,124.73,0.68136429]
[1767201313988,0.68475131,124.75,124.72,3.21446505]
[1767201314191,0.68475131,124.75,124.73,0.68136429]
[1767201315112,0.68475131,124.75,124.72,3.89582934]
[1767201316514,0.68475131,124.75,124.72,0.68136429]
[1767201316691,0.68475131,124.75,124.72,3.89582934]
[1767201320919,0.70325297,124.74,124.7,0.71710775]
[1767201321136,0.70325297,124.73,124.71,3.21446505]
[1767201321424,0.70325297,124.74,124.71,3.9315728]
[1767201323020,3.21446505,124.73,124.7,0.71710775]
[1767201323218,3.21446505,124.72,124.69,14.86]
[1767201323410,3.91771802,124.72,124.69,15.57710775]
[1767201323918,0.70325297,124.72,124.69,18.7915728]
[1767201324319,0.70325297,124.74,124.71,0.71710775]
[1767201324525,3.91771802,124.74,124.71,3.9315728]
[1767201325009,0.70325297,124.74,124.71,3.9315728]
[1767201325321,0.70325297,124.73,124.71,0.71710775]
[1767201326022,3.91771802,124.73,124.71,0.71710775]
[1767201326212,0.70325297,124.73,124.71,0.71710775]
[1767201327029,0.70325297,124.73,124.7,3.21446505]
[1767201327320,3.91771802,124.73,124.7,0.71710775]
[1767201327730,3.91771802,124.73,124.69,14.86]
[1767201327731,3.91771802,124.72,124.69,15.57710775]
[1767201328232,0.70325297,124.72,124.7,0.71710775]
[1767201328434,3.91771802,124.72,124.7,0.71710775]
[1767201328930,3.91771802,124.72,124.69,15.57710775]
[1767201329106,3.91771802,124.72,124.69,0.91710775]
[1767201330506,5.73030449,124.72,124.69,0.91710775]
[1767201331007,0.70325297,124.7,124.69,0.2]
[1767201331421,5.73030449,124.71,124.69,0.2]
[1767201332632,5.02705152,124.71,124.69,0.2]
[1767201332836,0.70325297,124.7,124.69,0.2]
[1767201333021,5.73030449,124.7,124.69,0.2]
[1767201333538,0.70325297,124.7,124.69,0.2]
[1767201334235,0.70325297,124.69,124.66,15.37710775]
[1767201334423,0.70325297,124.69,124.66,20.40415927]
[1767201334837,0.70325297,124.69,124.66,15.37710775]
[1767201335038,0.70325297,124.69,124.66,20.40415927]
[1767201335735,0.70325297,124.69,124.66,14.66]
[1767201335919,0.70325297,124.7,124.67,0.71710775]
[1767201336120,0.70325297,124.7,124.67,5.74415927]
[1767201336638,5.73030449,124.7,124.67,0.71710775]
[1767201338041,70.37785054,124.73,124.69,5.02705152]
[1767201338225,5.73030449,124.73,124.7,0.71710775]
[1767201338544,0.70325297,124.72,124.69,5.02705152]
[1767201339123,0.70325297,124.71,124.68,5.74415927]
[1767201339636,0.70325297,124.71,124.68,0.71710775]
[1767201340046,5.73030449,124.71,124.68,0.71710775]
[1767201342733,0.70325297,124.71,124.68,5.74415927]
[1767201343138,0.70325297,124.71,124.68,0.71710775]
[1767201343354,0.70325297,124.71,124.68,5.74415927]
[1767201343549,8.01697276,124.74,124.69,0.71710775]
[1767201343550,0.70325297,124.74,124.69,0.71710775]
[1767201343845,5.73030449,124.72,124.69,0.71710775]
[1767201344541,8.01639559,124.75,124.69,5.02705152]
[1767201344724,5.73030449,124.73,124.7,0.71710775]
[1767201344924,0.70325297,124.72,124.7,0.71710775]
[1767201345381,5.73030449,124.72,124.69,0.71710775]
[1767201350827,0.71110983,124.71,124.68,0.71283468]
[1767201351648,5.73816135,124.71,124.68,0.71283468]
[1767201352632,0.71110983,124.7,124.67,0.71283468]
[1767201352880,5.73816135,124.7,124.67,0.71283468]
[1767201353336,0.71110983,124.7,124.67,0.71283468]
[1767201353960,0.71110983,124.72,124.67,0.71283468]
[1767201354258,8.01737693,124.73,124.67,0.71283468]
[1767201354259,5.73816135,124.71,124.67,0.71283468]
[1767201356957,0.71110983,124.71,124.67,5.7398862]
[1767201357263,5.73816135,124.71,124.68,0.71283468]
[1767201359161,5.73816135,124.73,124.7,0.71283468]
[1767201360261,5.73816135,124.72,124.68,5.7398862]
[1767201360567,5.73816135,124.71,124.68,0.71283468]
[1767201361560,0.71110983,124.71,124.68,0.71283468]
[1767201363578,5.02705152,124.71,124.66,22.12962815]
[1767201363766,5.93906367,124.7,124.67,0.71283468]
[1767201363973,5.73816135,124.71,124.68,0.71283468]
[1767201365971,0.71110983,124.71,124.68,0.71283468]
[1767201366460,5.73816135,124.71,124.68,0.71283468]
[1767201366964,0.71110983,124.72,124.69,0.71283468]
[1767201367171,5.94474298,124.71,124.69,0.71283468]
[1767201367356,0.71110983,124.72,124.69,0.71283468]
[1767201367670,5.94631043,124.71,124.69,0.71283468]
[1767201367921,0.71110983,124.72,124.69,0.71283468]
[1767201368466,5.9472251,124.71,124.7,0.71283468]
[1767201368773,5.73816135,124.73,124.7,0.71283468]
[1767201368976,5.94846764,124.72,124.7,0.71283468]
[1767201369153,5.73816135,124.73,124.7,0.71283468]
[1767201369355,5.94943182,124.72,124.7,0.71283468]
[1767201369689,5.73816135,124.73,124.7,0.71283468]
[1767201369853,5.94931434,124.72,124.7,0.71283468]
[1767201370048,5.73816135,124.73,124.7,0.71283468]
[1767201370252,5.95029087,124.72,124.7,0.71283468]
[1767201370480,5.73816135,124.73,124.7,0.71283468]
[1767201370777,5.95276352,124.72,124.7,0.71283468]
[1767201370984,5.73816135,124.73,124.7,0.71283468]
[1767201371192,5.95546267,124.72,124.7,0.71283468]
[1767201371471,0.71110983,124.73,124.7,0.71283468]
[1767201371682,5.95640064,124.72,124.7,0.71283468]
[1767201371858,8.35013837,124.75,124.71,5.7398862]
[1767201372187,6.66823439,124.74,124.71,0.71283468]
[1767201372384,5.95712456,124.73,124.71,0.71283468]
[1767201373279,6.66823439,124.73,124.71,0.71283468]
[1767201373453,0.71110983,124.74,124.71,0.71283468]
[1767201373660,5.95720514,124.73,124.71,0.71283468]
[1767201373878,0.71110983,124.74,124.71,0.71283468]
[1767201374173,5.73816135,124.76,124.73,0.71283468]
[1767201374379,5.95795346,124.75,124.73,5.7398862]
[1767201374574,0.71110983,124.76,124.73,0.71283468]
[1767201374788,5.95626874,124.75,124.73,0.71283468]
[1767201375093,5.95626874,124.74,124.73,0.71283468]
[1767201375283,5.73816135,124.74,124.71,0.71283468]
[1767201375485,5.95405845,124.73,124.71,0.71283468]
[1767201375785,5.73816135,124.74,124.71,0.71283468]
[1767201376559,0.71110983,124.74,124.71,5.7398862]
[1767201377884,0.71110983,124.74,124.72,5.02705152]
[1767201378483,0.71110983,124.74,124.71,5.7398862]
[1767201379079,0.71110983,124.74,124.71,0.71283468]
[1767201379285,0.71110983,124.74,124.71,5.7398862]
[1767201379782,0.71110983,124.74,124.72,0.71646672]
[1767201380883,0.71110983,124.74,124.71,5.73052993]
[1767201381079,0.71797497,124.73,124.71,0.70347841]
[1767201381379,0.71797497,124.73,124.69,5.02705152]
[1767201381380,5.74502649,124.73,124.7,0.70347841]
[1767201383072,0.71797497,124.73,124.7,0.70347841]
[1767201384277,5.74502649,124.73,124.7,0.70347841]
[1767201385181,0.71797497,124.73,124.7,5.73052993]
[1767201387382,0.71797497,124.73,124.71,0.70347841]
[1767201391977,0.71797497,124.73,124.7,5.73052993]
[1767201392179,0.71797497,124.72,124.69,5.02705152]
[1767201392376,0.71797497,124.72,124.68,15.36347841]
[1767201392573,0.71797497,124.71,124.68,15.36347841]
[1767201393378,0.71797497,124.71,124.68,18.58087171]
[1767201393574,0.71797497,124.74,124.69,3.92087171]
[1767201393770,0.71797497,124.72,124.69,3.92087171]
[1767201394802,0.71797497,124.72,124.7,3.2173933]
[1767201395094,0.71797497,124.73,124.7,0.70347841]
[1767201395796,0.71797497,124.72,124.7,0.70347841]
[1767201396468,0.71797497,124.73,124.7,3.92087171]
[1767201396673,0.71797497,124.73,124.7,0.70347841]
[1767201396874,0.71797497,124.72,124.7,0.70347841]
[1767201399380,3.2173933,124.74,124.71,0.70347841]
[1767201399586,0.71797497,124.73,124.71,0.70347841]
[1767201400776,69.67459757,124.76,124.71,0.70347841]
[1767201400978,3.2173933,124.77,124.73,3.92087171]
[1767201401275,3.93536827,124.78,124.74,0.70347841]
[1767201401490,3.93536827,124.78,124.75,0.70347841]
[1767201402077,0.71797497,124.78,124.75,3.92087171]
[1767201402380,73.60996584,124.79,124.76,0.70347841]
[1767201402698,70.39257254,124.79,124.76,3.92087171]
[1767201403085,0.71797497,124.79,124.76,3.92087171]
[1767201404881,0.71797497,124.79,124.76,0.70347841]
[1767201405195,3.93536827,124.79,124.76,0.70347841]
[1767201405695,0.71797497,124.79,124.76,3.92087171]
[1767201406202,3.93536827,124.81,124.78,0.70347841]
[1767201407278,3.2173933,124.8,124.78,0.70347841]
[1767201408971,0.71797497,124.81,124.78,0.70347841]
[1767201409183,3.2173933,124.8,124.78,0.70347841]
[1767201409503,2.48536827,124.8,124.77,0.15071373]
[1767201410898,2.48536827,124.8,124.76,3.36810703]
[1767201411201,0.65272295,124.79,124.76,0.15071373]
[1767201412114,3.87011625,124.79,124.76,0.15071373]
[1767201412797,20.54638558,124.82,124.74,18.02810703]
[1767201412798,0.65272295,124.78,124.74,18.02810703]
[1767201413005,3.87011625,124.78,124.75,0.15071373]
[1767201414297,0.65272295,124.78,124.75,0.15071373]
[1767201414501,0.65272295,124.78,124.75,3.36810703]
[1767201417017,12.53470001,124.82,124.75,3.2173933]
[1767201417182,3.87011625,124.81,124.77,0.15071373]
[1767201417382,3.87011625,124.81,124.77,3.36810703]
[1767201420514,3.87011625,124.81,124.77,3.2173933]
[1767201420515,3.2173933,124.81,124.77,3.2173933]
[1767201420685,12.53470001,124.82,124.77,3.36810703]
[1767201420886,4.18456164,124.82,124.78,3.36810703]
[1767201421188,8.05467789,124.82,124.78,0.15071373]
[1767201421516,0.65272295,124.81,124.78,0.15071373]
[1767201423007,0.85272295,124.84,124.8,0.15071373]
[1767201423214,4.38769447,124.84,124.81,0.15071373]
[1767201423507,0.2,124.84,124.81,0.15071373]
[1767201423909,0.85272295,124.84,124.81,0.15071373]
[1767201424496,0.85272295,124.84,124.8,3.36810703]
[1767201424697,0.85272295,124.84,124.81,0.15071373]
[1767201425189,0.85272295,124.84,124.81,3.36810703]
[1767201426006,5.04080201,124.87,124.83,3.2173933]
[1767201426206,0.85272295,124.87,124.84,3.2173933]
[1767201426601,0.65272295,124.86,124.81,22.65174008]
[1767201426789,0.65272295,124.86,124.83,3.2173933]
[1767201427290,0.2,124.87,124.84,3.2173933]
[1767201428586,0.2,124.87,124.83,8.01078018]
[1767201428904,0.2,124.87,124.82,8.01127412]
[1767201429107,4.07011625,124.87,124.83,3.2173933]
[1767201429613,0.85272295,124.87,124.83,3.2173933]
[1767201429912,4.07011625,124.87,124.83,3.2173933]
[1767201430113,0.85272295,124.87,124.83,3.2173933]
[1767201430309,0.2,124.87,124.84,3.2173933]
[1767201431010,0.2,124.87,124.86,3.2173933]
[1767201432304,0.2,124.87,124.85,3.2173933]
[1767201432499,0.2,124.87,124.86,3.2173933]
[1767201432814,0.2,124.9,124.86,11.22633003]
[1767201432999,0.2,124.9,124.89,3.2173933]
[1767201433198,0.2,124.91,124.89,3.2173933]
[1767201433399,0.2,124.91,124.9,1.08e-06]
[1767201433600,0.2,124.91,124.87,17.8573933]
[1767201433799,0.65272295,124.9,124.87,17.8573933]
[1767201434705,3.87011625,124.9,124.87,14.64]
[1767201434912,3.2173933,124.9,124.87,14.64]
[1767201435106,0.65272295,124.89,124.87,14.64]
[1767201435310,0.65272295,124.88,124.84,3.2173933]
[1767201435522,3.2173933,124.88,124.83,14.64]
[1767201435717,0.65272295,124.89,124.83,17.8573933]
[1767201436023,3.87011625,124.88,124.83,17.8573933]
[1767201436907,3.87011625,124.87,124.83,17.8573933]
[1767201437113,0.65272295,124.86,124.83,17.8573933]
[1767201437317,0.65272295,124.84,124.83,14.64]
[1767201438312,0.65272295,124.83,124.79,3.2173933]
[1767201438517,3.87011625,124.83,124.79,3.2173933]
[1767201438819,0.65272295,124.83,124.79,3.2173933]
[1767201439019,0.71708915,124.84,124.8,3.2173933]
[1767201440425,0.71708915,124.84,124.8,11.23017171]
[1767201440725,0.71708915,124.84,124.8,3.2173933]
[1767201440901,0.71708915,124.84,124.79,8.01316036]
[1767201441102,3.93448245,124.84,124.8,3.2173933]
[1767201441800,3.93448245,124.84,124.79,3.2173933]
[1767201443208,3.93448245,124.84,124.79,11.23082435]
[1767201443406,3.93448245,124.84,124.8,3.2173933]
[1767201445931,3.93448245,124.84,124.79,8.01343105]
[1767201446103,3.93448245,124.84,124.8,3.2173933]
[1767201446929,0.6544124,124.83,124.79,11.23082435]
[1767201447328,0.6544124,124.86,124.78,8.01379926]
[1767201447507,0.6544124,124.82,124.78,11.23119256]
[1767201447713,0.6544124,124.87,124.81,3.2173933]
[1767201448019,0.6544124,124.87,124.83,3.2173933]
[1767201449330,3.8718057,124.85,124.81,3.2173933]
[1767201449529,0.6544124,124.85,124.81,3.2173933]
[1767201452029,0.6544124,124.85,124.81,11.22956209]
[1767201452413,0.6544124,124.88,124.81,11.22956209]
[1767201452730,5.66989155,124.86,124.81,13.02764794]
[1767201452939,5.01547915,124.86,124.81,13.02764794]
[1767201453142,0.6544124,124.85,124.81,13.02764794]
[1767201453836,0.6544124,124.85,124.82,5.01547915]
[1767201455250,0.6544124,124.85,124.81,8.01216879]
[1767201455424,0.6544124,124.85,124.82,5.01547915]
[1767201456743,0.6544124,124.85,124.81,8.01216879]
[1767201456928,0.6544124,124.85,124.81,13.02764794]
[1767201457341,0.6544124,124.85,124.82,5.01547915]
[1767201457838,69.67459757,124.89,124.82,13.02683242]
[1767201458039,5.01547915,124.88,124.83,5.01547915]
[1767201458214,0.6544124,124.87,124.83,5.01547915]
[1767201460728,0.6544124,124.87,124.83,13.02615253]
[1767201460928,0.6544124,124.88,124.85,5.01547915]
[1767201462650,5.01547915,124.9,124.86,5.01547915]
[1767201462651,0.6544124,124.9,124.86,5.01547915]
[1767201463342,0.6544124,124.9,124.87,5.01547915]
[1767201463656,0.6544124,124.9,124.86,5.01547915]
[1767201463836,0.6544124,124.9,124.85,28.03363698]
[1767201464033,0.6544124,124.9,124.86,5.01547915]
[1767201464235,0.6544124,124.9,124.86,13.02412685]
[1767201464733,0.6544124,124.9,124.87,5.01547915]
[1767201466047,0.6544124,124.9,124.87,13.02379358]
[1767201467458,0.6544124,124.9,124.87,5.01547915]
[1767201467956,0.6544124,124.9,124.85,20.02402883]
[1767201467957,0.6544124,124.9,124.85,28.03364036]
[1767201468152,0.6544124,124.9,124.87,5.01547915]
[1767201471863,0.6544124,124.9,124.86,8.00860863]
[1767201472071,0.6544124,124.9,124.87,13.02372549]
[1767201472370,0.6544124,124.9,124.87,5.01547915]
[1767201472750,0.6544124,124.9,124.88,5.01547915]
[1767201473666,0.2,124.91,124.89,5.01547915]
[1767201474745,0.2,124.91,124.88,8.00759612]
[1767201475076,0.68900551,124.9,124.86,27.66410423]
[1767201475540,5.21547915,124.91,124.88,5.01547915]
[1767201475541,0.2,124.91,124.88,5.01547915]
[1767201475746,0.88900551,124.91,124.88,5.01547915]
[1767201476670,0.2,124.92,124.9,5.01547915]
[1767201476841,0.2,124.92,124.91,5.01547915]
[1767201477044,0.2,124.92,124.9,5.01547915]
[1767201478667,0.2,124.92,124.91,5.01547915]
[1767201480173,0.2,124.92,124.88,8.00768737]
[1767201480386,0.88900551,124.92,124.9,5.01547915]
[1767201480749,0.88900551,124.92,124.89,5.01547915]
[1767201482353,0.88900551,124.92,124.89,13.02251094]
[1767201482553,0.88900551,124.92,124.9,5.01547915]
[1767201482757,0.2,124.92,124.91,5.01547915]
[1767201484564,0.88900551,124.92,124.89,5.01547915]
[1767201485075,0.68900551,124.91,124.88,5.01547915]
[1767201485264,0.68900551,124.91,124.87,8.00789143]
[1767201485459,0.68900551,124.91,124.88,5.01547915]
[1767201486875,0.68900551,124.91,124.87,5.01547915]
[1767201487449,5.90448466,124.92,124.88,5.01547915]
[1767201488658,5.90448466,124.92,124.87,5.01547915]
[1767201489584,5.90448466,124.92,124.87,13.02321289]
[1767201490177,1e-08,124.92,124.91,5.01547915]
[1767201490368,0.2,124.93,124.91,5.01547915]
[1767201490566,0.2,124.94,124.92,5.01547915]
[1767201491072,0.2,124.94,124.87,42.66855539]
[1767201491278,0.88900551,124.94,124.9,5.01547915]
[1767201491781,5.90448466,124.94,124.9,13.02184534]
[1767201492073,0.68900551,124.93,124.88,5.01547915]
[1767201492258,5.70448466,124.93,124.88,5.01547915]
[1767201492457,0.68900551,124.92,124.88,13.02281611]
[1767201493777,5.70448466,124.93,124.89,13.02250811]
[1767201493974,0.68900551,124.93,124.89,13.02250811]
[1767201494670,5.21547915,124.94,124.89,13.02250811]
[1767201494875,0.2,124.94,124.91,5.01547915]
[1767201495575,0.2,124.94,124.9,5.01547915]
[1767201495760,0.2,124.94,124.9,13.0216346]
[1767201495958,0.88900551,124.94,124.9,13.0216346]
[1767201496171,0.2,124.94,124.9,13.0216346]
[1767201497654,0.2,124.94,124.91,13.02090402]
[1767201498986,0.2,124.94,124.89,20.0176155]
[1767201499173,0.2,124.94,124.91,5.01547915]
[1767201499486,0.2,124.94,124.9,5.01547915]
[1767201500779,0.87470181,124.94,124.9,5.01547915]
[1767201501268,0.87470181,124.94,124.9,13.02124418]
[1767201501587,0.67470181,124.92,124.89,8.006814]
[1767201501774,5.69018096,124.92,124.89,8.006814]
[1767201501966,5.69018096,124.92,124.88,8.00736631]
[1767201502168,5.69018096,124.92,124.89,8.00699632]
[1767201502862,5.69018096,124.92,124.88,8.0073526]
[1767201503267,5.69018096,124.91,124.87,8.008009]
[1767201503464,5.69018096,124.89,124.85,6.71897319]
[1767201503659,5.69018096,124.89,124.85,14.72821691]
[1767201504479,5.69018096,124.89,124.85,8.00924372]
[1767201505186,5.69018096,124.89,124.85,14.72821691]
[1767201506093,5.01547915,124.89,124.85,14.72821691]
[1767201506281,0.67470181,124.88,124.85,8.00924372]
[1767201506484,5.69018096,124.9,124.85,8.00924372]
[1767201506681,0.67470181,124.89,124.85,14.72821691]
[1767201507196,5.69018096,124.9,124.85,39.76772489]
[1767201507366,5.01547915,124.89,124.85,34.75224574]
[1767201507567,5.63018096,124.89,124.85,28.03327255]
[1767201507767,5.63018096,124.89,124.85,34.75224574]
[1767201508686,0.67470181,124.91,124.85,8.00924372]
[1767201508876,5.69018096,124.88,124.85,8.00924372]